lending/lending_fUSD_20250224
["ID","MTS","AMOUNT","RATE_DAILY","PERIOD"]
[354285408,1740393096015,-1239.34,0.00017178,2]
[354285409,1740393096024,-2117.99,0.00017178,2]
[354285410,1740393096033,-2225.26,0.00017178,2]
[354285411,1740393096043,-1435.64,0.00017178,2]
[354285412,1740393096052,-876.4,0.00017178,2]
[354285413,1740393096061,-1250.73,0.00017178,2]
[354285414,1740393096070,-1238.73,0.00017178,2]
[354285415,1740393096080,-1448.82,0.00017178,2]
[354285416,1740393096089,-1222.74,0.00017178,2]
[354285417,1740393096098,-500.0,0.00017178,2]
[354285418,1740393096107,-2133.06,0.00017178,2]
[354285419,1740393096116,-500.0,0.00017178,2]
[354285420,1740393096125,-902.39,0.00017178,2]
[354285421,1740393096134,-2952.34,0.00017178,2]
[354285422,1740393096144,-637.55,0.00017178,2]
[354285423,1740393096153,-1714.23,0.00017178,2]
[354285424,1740393096162,-1345.12,0.00017178,2]
[354285425,1740393096171,-1346.53,0.00017178,2]
[354285426,1740393096180,-1153.09,0.00017178,2]
[354285427,1740393096189,-500.0,0.00017178,2]
[354285428,1740393096199,-1050.72,0.00017178,2]
[354285429,1740393096208,-1549.23,0.00017178,2]
[354285430,1740393096217,-500.0,0.00017178,2]
[354285431,1740393096227,-500.0,0.00017178,2]
[354285432,1740393096235,-2116.78,0.00017178,2]
[354285433,1740393096245,-1323.73,0.00017178,2]
[354285434,1740393096254,-1976.05,0.00017178,2]
[354285435,1740393096263,-968.02,0.00017178,2]
[354285436,1740393096272,-2709.27,0.00017178,2]
[354285437,1740393096282,-1417.13,0.00017178,2]
[354285438,1740393096292,-649.11,0.00017178,2]
[354285439,1740393096301,-517.98,0.00017178,2]
[354285440,1740393096312,-1383.1,0.00017178,2]
[354285441,1740393096321,-575.9,0.00017178,2]
[354285442,1740393096332,-639.53,0.00017178,2]
[354285443,1740393096342,-2137.13,0.00017178,2]
[354285444,1740393096352,-1329.85,0.00017178,2]
[354285445,1740393096361,-2522.02,0.00017178,2]
[354285446,1740393096371,-500.0,0.00017178,2]
[354285447,1740393096380,-1057.9,0.00017178,2]
[354285448,1740393096389,-2173.78,0.00017178,2]
[354285449,1740393096400,-152.0,0.00017185,8]
[354285450,1740393096409,-201.0,0.0001719,2]
[354285451,1740393096418,-205.0,0.0001719,2]
[354285452,1740393096428,-150.0,0.000172,2]
[354285453,1740393096438,-255.4928912,0.000172,2]
[354285454,1740393096582,-206.19411432,0.000172,2]
[354285455,1740393096592,-501.00736799,0.00017221,2]
[354285456,1740393096602,-500.37916013,0.00017221,2]
[354285457,1740393096611,-500.50975833,0.00017221,2]
[354285458,1740393096622,-193.27997254,0.00017221,2]
[354285459,1740393096631,-500.98040472,0.00017221,2]
[354285460,1740393096641,-509.70159972,0.00017221,2]
[354285461,1740393096650,-205.0,0.0001724,2]
[354285462,1740393096660,-927.18,0.00017253,2]
[354285463,1740393096669,-500.0,0.0001726,2]
[354285464,1740393096678,-500.0,0.0001726,2]
[354285465,1740393096687,-500.0,0.0001726,2]
[354285466,1740393096696,-500.0,0.0001726,2]
[354285467,1740393096705,-500.0,0.0001726,2]
[354285468,1740393096715,-500.0,0.0001726,2]
[354285469,1740393096724,-500.0,0.0001726,2]
[354285470,1740393096733,-513.04,0.0001726,2]
[354285471,1740393096742,-500.0,0.0001726,2]
[354285472,1740393096751,-705.82,0.0001726,2]
[354285473,1740393096761,-500.0,0.0001726,2]
[354285474,1740393096770,-378.81117335,0.0001726,2]
[354285475,1740393096779,-568.69,0.0001726,2]
[354285476,1740393096788,-500.0,0.0001726,2]
[354285477,1740393096797,-500.0,0.0001726,2]
[354285478,1740393096807,-500.0,0.0001726,2]
[354285479,1740393096816,-613.91,0.0001726,2]
[354285480,1740393096827,-500.0,0.0001726,2]
[354285481,1740393096836,-500.0,0.0001726,2]
[354285482,1740393096846,-829.52,0.0001726,2]
[354285483,1740393096858,-614.79,0.0001726,2]
[354285484,1740393096867,-500.0,0.0001726,2]
[354285485,1740393096877,-579.34,0.0001726,2]
[354285486,1740393096887,-656.83,0.0001726,2]
[354285487,1740393096898,-801.72,0.0001726,2]
[354285488,1740393096907,-500.0,0.0001726,2]
[354285489,1740393096916,-500.0,0.0001726,2]
[354285490,1740393096926,-500.0,0.0001726,2]
[354285491,1740393096937,-778.26,0.0001726,2]
[354285492,1740393096946,-812.09,0.0001726,2]
[354285493,1740393096955,-563.47,0.0001726,2]
[354285494,1740393096964,-387.92174522,0.0001726,2]
[354285495,1740393096973,-500.0,0.0001726,2]
[354285496,1740393096982,-500.0,0.0001726,2]
[354285497,1740393096991,-594.42,0.0001726,2]
[354285498,1740393097000,-1017.59,0.0001726,2]
[354285499,1740393097009,-1173.0,0.0001726,2]
[354285500,1740393097019,-500.0,0.0001726,2]
[354285501,1740393097028,-985.36,0.0001726,2]
[354285502,1740393097037,-500.0,0.0001726,2]
[354285503,1740393097046,-714.1,0.0001726,2]
[354285504,1740393097055,-601.34,0.0001726,2]
[354285505,1740393097065,-500.0,0.0001726,2]
[354285506,1740393097074,-1166.36,0.0001726,2]
[354285507,1740393097084,-500.0,0.0001726,2]
[354285508,1740393097093,-279.73988293,0.0001726,2]
[354285509,1740393097103,-500.0,0.0001726,2]
[354285510,1740393097112,-655.58,0.0001726,2]
[354285511,1740393097121,-568.87,0.0001726,2]
[354285512,1740393097130,-500.0,0.0001726,2]
[354285513,1740393097139,-500.0,0.0001726,2]
[354285514,1740393097148,-500.0,0.0001726,2]
[354285515,1740393097158,-817.86,0.0001726,2]
[354285516,1740393097167,-500.0,0.0001726,2]
[354285517,1740393097176,-500.0,0.0001726,2]
[354285518,1740393097185,-554.61,0.0001726,2]
[354285519,1740393097195,-607.13,0.0001726,2]
[354285520,1740393097204,-500.0,0.0001726,2]
[354285521,1740393097214,-299.279106,0.0001726,2]
[354285522,1740393097223,-587.42,0.0001726,2]
[354285523,1740393097232,-500.0,0.0001726,2]
[354285524,1740393097241,-500.0,0.0001726,2]
[354285525,1740393097250,-500.0,0.0001726,2]
[354285526,1740393097259,-976.63,0.0001726,2]
[354285527,1740393097269,-758.07,0.0001726,2]
[354285528,1740393097278,-327.093108,0.0001726,2]
[354285529,1740393097288,-912.3,0.0001726,2]
[354285530,1740393097297,-966.44,0.0001726,2]
[354285531,1740393097306,-571.99,0.0001726,2]
[354285532,1740393097315,-583.89,0.0001726,2]
[354285533,1740393097324,-508.91,0.0001726,2]
[354285534,1740393097334,-500.0,0.0001726,2]
[354285535,1740393097343,-500.0,0.0001726,2]
[354285536,1740393097352,-500.0,0.0001726,2]
[354285537,1740393097361,-592.59922447,0.0001726,2]
[354285538,1740393097370,-825.69,0.0001726,2]
[354285539,1740393097380,-500.0,0.0001726,2]
[354285540,1740393097389,-793.11,0.0001726,2]
[354285541,1740393097399,-568.54,0.0001726,2]
[354285542,1740393097408,-688.09,0.0001726,2]
[354285543,1740393097418,-500.0,0.0001726,2]
[354285544,1740393097427,-827.28,0.0001726,2]
[354285545,1740393097436,-500.0,0.0001726,2]
[354285546,1740393097445,-500.0,0.0001726,2]
[354285547,1740393097455,-500.0,0.0001726,2]
[354285548,1740393097464,-500.0,0.0001726,2]
[354285549,1740393097474,-501.11,0.0001726,2]
[354285550,1740393097484,-571.55,0.0001726,2]
[354285551,1740393097493,-500.0,0.0001726,2]
[354285552,1740393097502,-590.2,0.0001726,2]
[354285553,1740393097512,-500.0,0.0001726,2]
[354285554,1740393097522,-337.08420413,0.0001726,2]
[354285555,1740393097531,-500.0,0.0001726,2]
[354285556,1740393097541,-500.0,0.0001726,2]
[354285557,1740393097550,-500.0,0.0001726,2]
[354285558,1740393097561,-500.0,0.0001726,2]
[354285559,1740393097570,-500.0,0.0001726,2]
[354285560,1740393097580,-865.78,0.0001726,2]
[354285561,1740393097590,-500.0,0.0001726,2]
[354285562,1740393097599,-792.11,0.0001726,2]
[354285563,1740393097608,-502.07,0.0001726,2]
[354285564,1740393097617,-500.0,0.0001726,2]
[354285565,1740393097627,-732.07,0.0001726,2]
[354285566,1740393097636,-536.67,0.0001726,2]
[354285567,1740393097645,-772.46,0.0001726,2]
[354285568,1740393097654,-994.92,0.0001726,2]
[354285569,1740393097664,-719.27,0.0001726,2]
[354285570,1740393097673,-500.0,0.0001726,2]
[354285571,1740393097682,-732.94,0.0001726,2]
[354285572,1740393097692,-894.91,0.0001726,2]
[354285573,1740393097701,-835.59,0.0001726,2]
[354285574,1740393097711,-1034.89,0.0001726,2]
[354285575,1740393097720,-500.0,0.0001726,2]
[354285576,1740393097729,-1083.32,0.0001726,2]
[354285577,1740393097739,-649.75,0.0001726,2]
[354285578,1740393097749,-547.93,0.0001726,2]
[354285579,1740393097759,-592.72747874,0.0001726,2]
[354285580,1740393097769,-689.58,0.0001726,2]
[354285581,1740393097778,-685.53,0.0001726,2]
[354285582,1740393097788,-500.0,0.0001726,2]
[354285583,1740393097797,-500.0,0.0001726,2]
[354285584,1740393097806,-500.0,0.0001726,2]
[354285585,1740393097816,-500.0,0.0001726,2]
[354285586,1740393097826,-500.0,0.0001726,2]
[354285587,1740393097837,-770.75,0.0001726,2]
[354285588,1740393097847,-596.16,0.0001726,2]
[354285589,1740393097859,-1066.15,0.0001726,2]
[354285590,1740393097872,-939.56,0.0001726,2]
[354285591,1740393097882,-535.53,0.0001726,2]
[354285592,1740393097892,-1713.16,0.0001726,2]
[354285593,1740393097903,-999.11,0.0001726,2]
[354285594,1740393097912,-545.3,0.0001726,2]
[354285595,1740393097923,-988.44,0.0001726,2]
[354285596,1740393097933,-1914.59,0.0001726,2]
[354285597,1740393097944,-1771.19,0.0001726,2]
[354285598,1740393097954,-500.0,0.0001726,2]
[354285599,1740393097963,-4053.22,0.0001726,2]
[354285600,1740393097975,-857.92,0.0001726,2]
[354285601,1740393097984,-1114.15,0.0001726,2]
[354285602,1740393097994,-2047.21,0.0001726,2]
[354285603,1740393098003,-507.52,0.0001726,2]
[354285604,1740393098012,-760.3,0.0001726,2]
[354285605,1740393098022,-1134.98,0.0001726,2]
[354285606,1740393098031,-1537.05,0.0001726,2]
[354285607,1740393098041,-2359.95,0.0001726,2]
[354285608,1740393098051,-1103.35,0.0001726,2]
[354285609,1740393098060,-4184.04,0.0001726,2]
[354285610,1740393098069,-1851.33,0.0001726,2]
[354285611,1740393098081,-2354.25,0.0001726,2]
[354285612,1740393098090,-613.1,0.0001726,2]
[354285613,1740393098100,-971.17,0.0001726,2]
[354285614,1740393098109,-3563.69,0.0001726,2]
[354285615,1740393098119,-500.0,0.0001726,2]
[354285616,1740393098128,-2009.96,0.0001726,2]
[354285617,1740393098138,-500.0,0.0001726,2]
[354285618,1740393098147,-1543.4,0.0001726,2]
[354285619,1740393098157,-533.77,0.0001726,2]
[354285620,1740393098166,-633.74,0.0001726,2]
[354285621,1740393098176,-2242.87,0.0001726,2]
[354285622,1740393098185,-500.0,0.0001726,2]
[354285623,1740393098195,-1803.65,0.0001726,2]
[354285624,1740393098204,-500.0,0.0001726,2]
[354285625,1740393098214,-2187.68,0.0001726,2]
[354285626,1740393098223,-728.65,0.0001726,2]
[354285627,1740393098233,-6441.69,0.0001726,2]
[354285628,1740393098242,-530.59,0.0001726,2]
[354285629,1740393098252,-552.52,0.0001726,2]
[354285630,1740393098260,-1823.33,0.0001726,2]
[354285631,1740393098269,-500.0,0.0001726,2]
[354285632,1740393098280,-580.19,0.0001726,2]
[354285633,1740393098289,-2359.28,0.0001726,2]
[354285634,1740393098298,-500.0,0.0001726,2]
[354285635,1740393098308,-6310.46,0.0001726,2]
[354285636,1740393098317,-1754.56,0.0001726,2]
[354285637,1740393098327,-1453.83,0.0001726,2]
[354285638,1740393098336,-2395.13,0.0001726,2]
[354285639,1740393098345,-500.0,0.0001726,2]
[354285640,1740393098354,-500.0,0.0001726,2]
[354285641,1740393098363,-500.0,0.0001726,2]
[354285642,1740393098374,-1530.26,0.0001726,2]
[354285643,1740393098383,-1729.98,0.0001726,2]
[354285644,1740393098392,-523.34,0.0001726,2]
[354285645,1740393098401,-1888.7,0.0001726,2]
[354285646,1740393098410,-887.15,0.0001726,2]
[354285647,1740393098419,-561.68,0.0001726,2]
[354285648,1740393098428,-1893.25,0.0001726,2]
[354285649,1740393098438,-1229.83,0.0001726,2]
[354285650,1740393098447,-1592.71,0.0001726,2]
[354285651,1740393098456,-1352.31,0.0001726,2]
[354285652,1740393098466,-2122.57,0.0001726,2]
[354285653,1740393098474,-1563.39,0.0001726,2]
[354285654,1740393098483,-500.0,0.0001726,2]
[354285655,1740393098492,-3181.44,0.0001726,2]
[354285656,1740393098501,-999.0,0.0001726,4]
[354285657,1740393098510,-931.35,0.0001726,2]
[354285658,1740393098519,-1399.69,0.0001726,2]
[354285659,1740393098528,-1364.19,0.0001726,2]
[354285660,1740393098537,-1158.15,0.0001726,2]
[354285661,1740393098546,-947.59,0.0001726,2]
[354285662,1740393098555,-1055.82,0.0001726,2]
[354285663,1740393098564,-1335.01,0.0001726,2]
[354285664,1740393098573,-1743.38,0.0001726,2]
[354285665,1740393098585,-1124.16,0.0001726,2]
[354285666,1740393098595,-1245.15,0.0001726,2]
[354285667,1740393098605,-862.87,0.0001726,2]
[354285668,1740393098614,-737.22,0.0001726,2]
[354285669,1740393098624,-3379.84,0.0001726,2]
[354285670,1740393098633,-2190.52,0.0001726,2]
[354285671,1740393098643,-1993.18,0.0001726,2]
[354285672,1740393098653,-2255.32,0.0001726,2]
[354285673,1740393098662,-2112.38,0.0001726,2]
[354285674,1740393098672,-1406.66,0.0001726,2]
[354285675,1740393098681,-511.28,0.0001726,2]
[354285676,1740393098815,-1338.87,0.0001726,2]
[354285677,1740393098826,-1163.78,0.0001726,2]
[354285678,1740393098836,-899.89,0.0001726,2]
[354285679,1740393098845,-2575.6,0.0001726,2]
[354285680,1740393098856,-1931.36,0.0001726,2]
[354285681,1740393098866,-500.0,0.0001726,2]
[354285682,1740393098874,-3875.26,0.0001726,2]
[354285683,1740393098884,-714.88,0.0001726,2]
[354285684,1740393098893,-4627.1,0.0001726,2]
[354285685,1740393098902,-651.74,0.0001726,2]
[354285686,1740393098911,-2331.1,0.0001726,2]
[354285687,1740393098920,-794.55,0.0001726,2]
[354285688,1740393098929,-811.87,0.0001726,2]
[354285689,1740393098939,-1360.35,0.0001726,2]
[354285690,1740393098948,-757.29,0.0001726,2]
[354285691,1740393098957,-500.0,0.0001726,2]
[354285692,1740393098967,-1905.52,0.0001726,2]
[354285693,1740393098976,-1012.51,0.0001726,2]
[354285694,1740393098986,-500.0,0.0001726,2]
[354285695,1740393098995,-1832.68,0.0001726,2]
[354285696,1740393099005,-500.0,0.0001726,2]
[354285697,1740393099014,-1130.11,0.0001726,2]
[354285698,1740393099024,-500.0,0.0001726,2]
[354285699,1740393099033,-2153.01,0.0001726,2]
[354285700,1740393099043,-500.0,0.0001726,2]
[354285701,1740393099052,-1435.16,0.0001726,2]
[354285702,1740393099062,-2176.8,0.0001726,2]
[354285703,1740393099071,-500.0,0.0001726,2]
[354285704,1740393099082,-1895.66,0.0001726,2]
[354285705,1740393099091,-683.14,0.0001726,2]
[354285706,1740393099100,-500.0,0.0001726,2]
[354285707,1740393099110,-258.84632479,0.0001726,2]
[354285708,1740393099119,-1239.34,0.0001726,2]
[354285709,1740393099127,-2117.99,0.0001726,2]
[354285710,1740393099137,-2225.26,0.0001726,2]
[354285711,1740393099146,-1435.64,0.0001726,2]
[354285712,1740393099155,-876.4,0.0001726,2]
[354285713,1740393099164,-1250.73,0.0001726,2]
[354285714,1740393099173,-1000.0,0.0001726,6]
[354285715,1740393099182,-1238.73,0.0001726,2]
[354285716,1740393099192,-1448.82,0.0001726,2]
[354285717,1740393099201,-1222.74,0.0001726,2]
[354285718,1740393099210,-500.0,0.0001726,2]
[354285719,1740393099219,-2133.06,0.0001726,2]
[354285720,1740393099228,-500.0,0.0001726,2]
[354285721,1740393099238,-902.39,0.0001726,2]
[354285722,1740393099247,-2952.34,0.0001726,2]
[354285723,1740393099257,-637.55,0.0001726,2]
[354285724,1740393099265,-1714.23,0.0001726,2]
[354285725,1740393099274,-1345.12,0.0001726,2]
[354285726,1740393099284,-1346.53,0.0001726,2]
[354285727,1740393099293,-1153.09,0.0001726,2]
[354285728,1740393099302,-500.0,0.0001726,2]
[354285729,1740393099311,-1050.72,0.0001726,2]
[354285730,1740393099320,-1549.23,0.0001726,2]
[354285731,1740393099331,-500.0,0.0001726,2]
[354285732,1740393099340,-500.0,0.0001726,2]
[354285733,1740393099349,-2116.78,0.0001726,2]
[354285734,1740393099359,-1323.73,0.0001726,2]
[354285735,1740393099367,-1976.05,0.0001726,2]
[354285736,1740393099377,-2709.27,0.0001726,2]
[354285737,1740393099386,-968.02,0.0001726,2]
[354285738,1740393099396,-1417.13,0.0001726,2]
[354285739,1740393099405,-649.11,0.0001726,2]
[354285740,1740393099415,-517.98,0.0001726,2]
[354285741,1740393099424,-1383.1,0.0001726,2]
[354285742,1740393099434,-575.9,0.0001726,2]
[354285743,1740393099443,-639.53,0.0001726,2]
[354285744,1740393099453,-2137.13,0.0001726,2]
[354285745,1740393099461,-1329.85,0.0001726,2]
[354285746,1740393099470,-2522.02,0.0001726,2]
[354285747,1740393099479,-500.0,0.0001726,2]
[354285748,1740393099488,-1057.9,0.0001726,2]
[354285749,1740393099497,-2173.78,0.0001726,2]
[354285750,1740393099506,-601.18,0.00017264,2]
[354285751,1740393099515,-400.0,0.0001727,2]
[354285752,1740393099523,-175.004175,0.00017275,2]
[354285753,1740393099532,-295.0037,0.00017288,7]
[354285754,1740393099541,-500.0,0.00017342,2]
[354285755,1740393099550,-500.0,0.00017342,2]
[354285756,1740393099559,-500.0,0.00017342,2]
[354285757,1740393099568,-500.0,0.00017342,2]
[354285758,1740393099578,-500.0,0.00017342,2]
[354285759,1740393099587,-173.44202721,0.00017342,2]
[354285760,1740393099596,-500.0,0.00017342,2]
[354285761,1740393099605,-513.04,0.00017342,2]
[354285762,1740393099615,-500.0,0.00017342,2]
[354285763,1740393099623,-705.82,0.00017342,2]
[354285764,1740393099632,-500.0,0.00017342,2]
[354285765,1740393099641,-568.69,0.00017342,2]
[354285766,1740393099650,-500.0,0.00017342,2]
[354285767,1740393099659,-160.7431557,0.00017342,2]
[354285768,1740393099668,-500.0,0.00017342,2]
[354285769,1740393099678,-613.91,0.00017342,2]
[354285770,1740393099688,-380.14281075,0.00017342,2]
[354285771,1740393099697,-162.53576828,0.00017342,2]
[354285772,1740393099706,-829.52,0.00017342,2]
[354285773,1740393099715,-614.79,0.00017342,2]
[354285774,1740393099725,-500.0,0.00017342,2]
[354285775,1740393099733,-579.34,0.00017342,2]
[354285776,1740393099743,-656.83,0.00017342,2]
[354285777,1740393099752,-801.72,0.00017342,2]
[354285778,1740393099762,-500.0,0.00017342,2]
[354285779,1740393099771,-500.0,0.00017342,2]
[354285780,1740393099780,-500.0,0.00017342,2]
[354285781,1740393099789,-778.26,0.00017342,2]
[354285782,1740393099799,-812.09,0.00017342,2]
[354285783,1740393099808,-563.47,0.00017342,2]
[354285784,1740393099818,-500.0,0.00017342,2]
[354285785,1740393099828,-500.0,0.00017342,2]
[354285786,1740393099838,-594.42,0.00017342,2]
[354285787,1740393099848,-1017.59,0.00017342,2]
[354285788,1740393099860,-1173.0,0.00017342,2]
[354285789,1740393099870,-500.0,0.00017342,2]
[354285790,1740393099879,-985.36,0.00017342,2]
[354285791,1740393099889,-500.0,0.00017342,2]
[354285792,1740393099899,-714.1,0.00017342,2]
[354285793,1740393099908,-601.34,0.00017342,2]
[354285794,1740393099917,-569.40540926,0.00017342,2]
[354285795,1740393099926,-1166.36,0.00017342,2]
[354285796,1740393099937,-500.0,0.00017342,2]
[354285797,1740393099946,-500.0,0.00017342,2]
[354285798,1740393099955,-655.58,0.00017342,2]
[354285799,1740393099965,-568.87,0.00017342,2]
[354285800,1740393099974,-500.0,0.00017342,2]
[354285801,1740393099983,-305.86278889,0.00017342,2]
[354285802,1740393099992,-500.0,0.00017342,2]
[354285803,1740393100001,-817.86,0.00017342,2]
[354285804,1740393100010,-500.0,0.00017342,2]
[354285805,1740393100019,-500.0,0.00017342,2]
[354285806,1740393100028,-554.61,0.00017342,2]
[354285807,1740393100038,-607.13,0.00017342,2]
[354285808,1740393100048,-500.0,0.00017342,2]
[354285809,1740393100057,-299.279106,0.00017342,2]
[354285810,1740393100066,-587.42,0.00017342,2]
[354285811,1740393100075,-500.0,0.00017342,2]
[354285812,1740393100085,-500.0,0.00017342,2]
[354285813,1740393100094,-500.0,0.00017342,2]
[354285814,1740393100103,-976.63,0.00017342,2]
[354285815,1740393100113,-758.07,0.00017342,2]
[354285816,1740393100123,-327.093108,0.00017342,2]
[354285817,1740393100132,-912.3,0.00017342,2]
[354285818,1740393100140,-966.44,0.00017342,2]
[354285819,1740393100150,-571.99,0.00017342,2]
[354285820,1740393100159,-583.89,0.00017342,2]
[354285821,1740393100168,-508.91,0.00017342,2]
[354285822,1740393100176,-500.0,0.00017342,2]
[354285823,1740393100186,-496.41051214,0.00017342,2]
[354285824,1740393100195,-500.0,0.00017342,2]
[354285825,1740393100205,-825.69,0.00017342,2]
[354285826,1740393100214,-500.0,0.00017342,2]
[354285827,1740393100223,-793.11,0.00017342,2]
[354285828,1740393100232,-568.54,0.00017342,2]
[354285829,1740393100240,-688.09,0.00017342,2]
[354285830,1740393100249,-500.0,0.00017342,2]
[354285831,1740393100258,-827.28,0.00017342,2]
[354285832,1740393100267,-500.0,0.00017342,2]
[354285833,1740393100277,-500.0,0.00017342,2]
[354285834,1740393100286,-500.0,0.00017342,2]
[354285835,1740393100295,-500.0,0.00017342,2]
[354285836,1740393100304,-501.11,0.00017342,2]
[354285837,1740393100313,-571.55,0.00017342,2]
[354285838,1740393100322,-500.0,0.00017342,2]
[354285839,1740393100333,-590.2,0.00017342,2]
[354285840,1740393100342,-500.0,0.00017342,2]
[354285841,1740393100351,-500.0,0.00017342,2]
[354285842,1740393100361,-500.0,0.00017342,2]
[354285843,1740393100370,-500.0,0.00017342,2]
[354285844,1740393100379,-500.0,0.00017342,2]
[354285845,1740393100388,-500.0,0.00017342,2]
[354285846,1740393100399,-865.78,0.00017342,2]
[354285847,1740393100408,-500.0,0.00017342,2]
[354285848,1740393100417,-792.11,0.00017342,2]
[354285849,1740393100426,-502.07,0.00017342,2]
[354285850,1740393100435,-500.0,0.00017342,2]
[354285851,1740393100445,-732.07,0.00017342,2]
[354285852,1740393100454,-536.67,0.00017342,2]
[354285853,1740393100463,-772.46,0.00017342,2]
[354285854,1740393100472,-994.92,0.00017342,2]
[354285855,1740393100482,-719.27,0.00017342,2]
[354285856,1740393100491,-500.0,0.00017342,2]
[354285857,1740393100500,-732.94,0.00017342,2]
[354285858,1740393100509,-894.91,0.00017342,2]
[354285859,1740393100518,-835.59,0.00017342,2]
[354285860,1740393100527,-1034.89,0.00017342,2]
[354285861,1740393100536,-500.0,0.00017342,2]
[354285862,1740393100545,-1083.32,0.00017342,2]
[354285863,1740393100554,-649.75,0.00017342,2]
[354285864,1740393100563,-547.93,0.00017342,2]
[354285865,1740393100572,-689.58,0.00017342,2]
[354285866,1740393100583,-685.53,0.00017342,2]
[354285867,1740393100592,-500.0,0.00017342,2]
[354285868,1740393100601,-500.0,0.00017342,2]
[354285869,1740393100611,-500.0,0.00017342,2]
[354285870,1740393100620,-500.0,0.00017342,2]
[354285871,1740393100630,-500.0,0.00017342,2]
[354285872,1740393100639,-770.75,0.00017342,2]
[354285873,1740393100649,-596.16,0.00017342,2]
[354285874,1740393100658,-1066.15,0.00017342,2]
[354285875,1740393100668,-939.56,0.00017342,2]
[354285876,1740393100677,-535.53,0.00017342,2]
[354285877,1740393100687,-1713.16,0.00017342,2]
[354285878,1740393100696,-999.11,0.00017342,2]
[354285879,1740393100705,-545.3,0.00017342,2]
[354285880,1740393100838,-988.44,0.00017342,2]
[354285881,1740393100849,-1914.59,0.00017342,2]
[354285882,1740393100862,-1771.19,0.00017342,2]
[354285883,1740393100871,-500.0,0.00017342,2]
[354285884,1740393100881,-4053.22,0.00017342,2]
[354285885,1740393100890,-857.92,0.00017342,2]
[354285886,1740393100901,-1114.15,0.00017342,2]
[354285887,1740393100910,-2047.21,0.00017342,2]
[354285888,1740393100919,-507.52,0.00017342,2]
[354285889,1740393100930,-760.3,0.00017342,2]
[354285890,1740393100940,-1134.98,0.00017342,2]
[354285891,1740393100950,-1537.05,0.00017342,2]
[354285892,1740393100960,-2359.95,0.00017342,2]
[354285893,1740393100969,-1103.35,0.00017342,2]
[354285894,1740393100979,-4184.04,0.00017342,2]
[354285895,1740393100988,-1851.33,0.00017342,2]
[354285896,1740393100997,-2354.25,0.00017342,2]
[354285897,1740393101007,-613.1,0.00017342,2]
[354285898,1740393101016,-971.17,0.00017342,2]
[354285899,1740393101025,-3563.69,0.00017342,2]
[354285900,1740393101034,-500.0,0.00017342,2]
[354285901,1740393101043,-2009.96,0.00017342,2]
[354285902,1740393101052,-500.0,0.00017342,2]
[354285903,1740393101062,-1543.4,0.00017342,2]
[354285904,1740393101071,-533.77,0.00017342,2]
[354285905,1740393101081,-2242.87,0.00017342,2]
[354285906,1740393101091,-633.74,0.00017342,2]
[354285907,1740393101101,-500.0,0.00017342,2]